fUST/lending_fUST_20250611
["ID","MTS","AMOUNT","RATE_DAILY","PERIOD"]
[365280132,1749575444563,-460.0,0.00023013,4]
[365280133,1749575444573,-842.84,0.00023013,4]
[365280134,1749575444583,-1309.27,0.00023013,4]
[365280135,1749575444592,-460.0,0.00023013,4]
[365280136,1749575444602,-460.0,0.00023013,4]
[365280137,1749575444611,-963.4,0.00023013,4]
[365280138,1749575444621,-460.0,0.00023013,4]
[365280139,1749575444633,-380.0,0.00023013,4]
[365280140,1749575444652,-663.84,0.00023013,4]
[365280141,1749575444661,-460.0,0.00023013,4]
[365280142,1749575444670,-326.05242744,0.00023038,8]
[365280143,1749575444679,-326.05242744,0.00023141,8]
[365280144,1749575444689,-613.4854085,0.00023173,2]
[365280145,1749575444698,-500.0,0.00023173,2]
[365280146,1749575444708,-500.0,0.00023173,2]
[365280147,1749575444719,-500.0,0.00023173,2]
[365280148,1749575444728,-500.0,0.00023173,2]
[365280149,1749575444738,-11140.08993078,0.000232,2]
[365280150,1749575444748,-35137.84291856,0.000232,2]
[365280151,1749575444757,-64374.06,0.000232,7]
[365280152,1749575444767,-500.0,0.00023208,2]
[365280153,1749575444776,-326.05242744,0.00023245,8]
[365280154,1749575444786,-460.0,0.00023287,4]
[365280155,1749575444795,-512.15,0.00023287,4]
[365280156,1749575444805,-460.0,0.00023287,4]
[365280157,1749575444814,-558.61,0.00023287,4]
[365280158,1749575444824,-460.0,0.00023287,4]
[365280159,1749575444834,-668.71,0.00023287,4]
[365280160,1749575444844,-524.59,0.00023287,4]
[365280161,1749575444854,-460.0,0.00023287,4]
[365280162,1749575444863,-942.26,0.00023287,4]
[365280163,1749575444873,-1611.82,0.00023287,4]
[365280164,1749575444882,-460.0,0.00023287,4]
[365280165,1749575444892,-530.14,0.00023287,4]
[365280166,1749575444902,-636.29,0.00023287,4]
[365280167,1749575444911,-380.0,0.00023287,4]
[365280168,1749575444922,-460.0,0.00023287,4]
[365280169,1749575444931,-460.0,0.00023287,2]
[365280170,1749575444941,-1018.16,0.00023287,4]
[365280171,1749575444952,-502.15,0.00023287,4]
[365280172,1749575444961,-1072.99,0.00023287,4]
[365280173,1749575444972,-1214.31,0.00023287,4]
[365280174,1749575444983,-460.0,0.00023287,4]
[365280175,1749575444992,-1387.6,0.00023287,4]
[365280176,1749575445002,-460.0,0.00023287,4]
[365280177,1749575445012,-460.0,0.00023287,4]
[365280178,1749575445022,-842.84,0.00023287,4]
[365280179,1749575445033,-1309.27,0.00023287,4]
[365280180,1749575445043,-383.54615271,0.00023287,4]
[365280181,1749575445053,-492.55980576,0.00023287,4]
[365280182,1749575445063,-963.4,0.00023287,4]
[365280183,1749575445075,-460.0,0.00023287,4]
[365280184,1749575445086,-663.84,0.00023287,4]
[365280185,1749575445095,-460.0,0.00023287,4]
[365280186,1749575445105,-17378.4041599,0.00023329,2]
[365280187,1749575445115,-197.0,0.0002333,7]
[365280188,1749575445126,-443.72833664,0.00023346,2]
[365280189,1749575445135,-326.05242744,0.00023348,9]
[365280190,1749575445144,-1380.04,0.00023366,2]
[365280191,1749575445155,-166.49135998,0.00023369,4]
[365280192,1749575445164,-151.0,0.00023369,4]
[365280193,1749575445174,-500.0,0.00023369,4]
[365280194,1749575445183,-151.0,0.00023369,4]
[365280195,1749575445193,-500.0,0.00023369,4]
[365280196,1749575445203,-500.0,0.00023369,4]
[365280197,1749575445212,-500.0,0.00023369,4]
[365280198,1749575445222,-281.16332978,0.00023369,4]
[365280199,1749575445232,-500.0,0.00023369,4]
[365280200,1749575445241,-500.0,0.00023369,4]
[365280201,1749575445251,-151.0,0.00023396,4]
[365280202,1749575445261,-500.83773021,0.00023396,4]
[365280203,1749575445271,-151.0,0.00023396,4]
[365280204,1749575445281,-500.0,0.00023396,4]
[365280205,1749575445290,-500.0,0.00023396,4]
[365280206,1749575445300,-500.0,0.00023396,4]
[365280207,1749575445309,-500.0,0.00023396,4]
[365280208,1749575445318,-500.0,0.00023396,4]
[365280209,1749575445327,-375.25,0.000234,7]
[365280210,1749575445337,-151.0,0.00023424,4]
[365280211,1749575445347,-198.0,0.00023424,4]
[365280212,1749575445355,-500.0,0.00023424,4]
[365280213,1749575445365,-500.0,0.00023424,4]
[365280214,1749575445374,-500.0,0.00023424,4]
[365280215,1749575445383,-500.0,0.00023424,4]
[365280216,1749575445393,-500.0,0.00023424,4]
[365280217,1749575445403,-326.05242744,0.00023452,9]
[365280218,1749575445412,-5000.0,0.00023465,2]
[365280219,1749575445421,-207.4,0.00023465,2]
[365280220,1749575445430,-326.05242744,0.00023555,9]
[365280221,1749575445439,-460.0,0.00023561,4]
[365280222,1749575445449,-512.15,0.00023561,4]
[365280223,1749575445458,-513.38863047,0.00023561,4]
[365280224,1749575445468,-558.61,0.00023561,4]
[365280225,1749575445478,-460.0,0.00023561,4]
[365280226,1749575445487,-668.71,0.00023561,4]
[365280227,1749575445497,-524.59,0.00023561,4]
[365280228,1749575445507,-460.0,0.00023561,4]
[365280229,1749575445517,-942.26,0.00023561,4]
[365280230,1749575445527,-1611.82,0.00023561,4]
[365280231,1749575445536,-460.0,0.00023561,4]
[365280232,1749575445545,-530.14,0.00023561,4]
[365280233,1749575445555,-636.29,0.00023561,4]
[365280234,1749575445565,-460.0,0.00023561,4]
[365280235,1749575445575,-380.0,0.00023561,2]
[365280236,1749575445584,-1018.16,0.00023561,4]
[365280237,1749575445593,-502.15,0.00023561,4]
[365280238,1749575445602,-1072.99,0.00023561,4]
[365280239,1749575445612,-1214.31,0.00023561,4]
[365280240,1749575445621,-460.0,0.00023561,4]
[365280241,1749575445630,-1387.6,0.00023561,4]
[365280242,1749575445640,-535.89,0.00023561,4]
[365280243,1749575445649,-460.0,0.00023561,4]
[365280244,1749575445659,-842.84,0.00023561,4]
[365280245,1749575445669,-1309.27,0.00023561,4]
[365280246,1749575445680,-963.4,0.00023561,4]
[365280247,1749575445688,-460.0,0.00023561,4]
[365280248,1749575445698,-663.84,0.00023561,4]
[365280249,1749575445707,-460.0,0.00023561,4]
[365280250,1749575445717,-628.26432575,0.00023615,2]
[365280251,1749575445727,-326.05242744,0.00023659,9]
[365280252,1749575445736,-1000.0,0.00023721,2]
[365280253,1749575445746,-155.4138332,0.00023753,2]
[365280254,1749575445755,-326.05242744,0.00023762,9]
[365280255,1749575445766,-587.0,0.00023764,2]
[365280256,1749575445776,-1633.38,0.000238,2]
[365280257,1749575445786,-443.72833664,0.00023807,2]
[365280258,1749575445796,-460.0,0.00023835,4]
[365280259,1749575445806,-512.15,0.00023835,4]
[365280260,1749575445815,-558.61,0.00023835,4]
[365280261,1749575445825,-460.0,0.00023835,4]
[365280262,1749575445835,-668.71,0.00023835,4]
[365280263,1749575445845,-524.59,0.00023835,4]
[365280264,1749575445856,-380.0,0.00023835,4]
[365280265,1749575445866,-942.26,0.00023835,4]
[365280266,1749575445877,-1611.82,0.00023835,4]
[365280267,1749575445886,-360.0,0.00023835,4]
[365280268,1749575445896,-530.14,0.00023835,4]
[365280269,1749575445906,-636.29,0.00023835,4]
[365280270,1749575445916,-460.0,0.00023835,4]
[365280271,1749575445927,-1018.16,0.00023835,4]
[365280272,1749575445937,-502.15,0.00023835,4]
[365280273,1749575445947,-1072.99,0.00023835,4]
[365280274,1749575445957,-1214.31,0.00023835,4]
[365280275,1749575445967,-460.0,0.00023835,4]
[365280276,1749575445978,-1387.6,0.00023835,4]
[365280277,1749575445988,-460.0,0.00023835,4]
[365280278,1749575445999,-842.84,0.00023835,4]
[365280279,1749575446010,-1309.27,0.00023835,4]
[365280281,1749575446020,-963.4,0.00023835,4]
[365280283,1749575446030,-460.0,0.00023835,4]
[365280285,1749575446041,-663.84,0.00023835,4]
[365280287,1749575446051,-460.0,0.00023835,4]
[365280289,1749575446061,-326.05242744,0.00023866,10]
[365280291,1749575446073,-364.9974737,0.0002389,2]
[365280293,1749575446085,-354.6810866,0.0002389,2]
[365280295,1749575446095,-301.13487156,0.000239,2]
[365280297,1749575446105,-326.05242744,0.00023969,10]
[365280299,1749575446115,-424.12530924,0.00024,7]
[365280301,1749575446125,-160.0,0.00024,7]
[365280303,1749575446135,-5000.0,0.00024013,2]
[365280305,1749575446145,-216.675,0.00024058,2]
[365280307,1749575446156,-963.0,0.00024058,2]
[365280309,1749575446165,-653.0,0.00024058,2]
[365280311,1749575446175,-2160.0,0.00024058,2]
[365280313,1749575446185,-405.0,0.00024058,2]
[365280315,1749575446194,-326.05242744,0.00024072,10]
[365280317,1749575446204,-12184.84,0.00024082,11]
[365280319,1749575446215,-155.0,0.000241,2]
[365280321,1749575446225,-460.0,0.00024109,4]
[365280323,1749575446235,-512.15,0.00024109,4]
[365280325,1749575446244,-558.61,0.00024109,4]
[365280327,1749575446254,-460.0,0.00024109,4]
[365280329,1749575446265,-668.71,0.00024109,4]
[365280332,1749575446274,-524.59,0.00024109,4]
[365280334,1749575446284,-942.26,0.00024109,4]
[365280336,1749575446294,-1611.82,0.00024109,4]
[365280338,1749575446304,-530.14,0.00024109,4]
[365280340,1749575446314,-636.29,0.00024109,4]
[365280342,1749575446324,-460.0,0.00024109,4]
[365280344,1749575446334,-1018.16,0.00024109,4]
[365280346,1749575446343,-502.15,0.00024109,4]
[365280348,1749575446353,-1072.99,0.00024109,4]
[365280350,1749575446362,-1214.31,0.00024109,4]
[365280352,1749575446371,-360.0,0.00024109,4]
[365280354,1749575446382,-1387.6,0.00024109,4]
[365280356,1749575446391,-460.0,0.00024109,4]
[365280358,1749575446401,-842.84,0.00024109,4]
[365280360,1749575446411,-1309.27,0.00024109,4]
[365280362,1749575446420,-963.4,0.00024109,4]
[365280364,1749575446429,-460.0,0.00024109,4]
[365280366,1749575446439,-663.84,0.00024109,4]
[365280368,1749575446449,-460.0,0.00024109,4]
[365280370,1749575446459,-326.05242744,0.00024176,10]
[365280372,1749575446469,-1332.43,0.000242,7]
[365280373,1749575446478,-500.0,0.00024268,2]
[365280374,1749575446488,-326.05242744,0.00024279,10]
[365280375,1749575446497,-2200.0,0.00024349,2]
[365280376,1749575446507,-1031.068633,0.00024353,3]
[365280377,1749575446545,-326.05242744,0.00024383,11]
[365280378,1749575446555,-460.0,0.00024383,4]
[365280379,1749575446564,-512.15,0.00024383,4]
[365280380,1749575446574,-558.61,0.00024383,4]
[365280381,1749575446584,-460.0,0.00024383,4]
[365280382,1749575446594,-668.71,0.00024383,4]
[365280383,1749575446604,-524.59,0.00024383,4]
[365280384,1749575446613,-942.26,0.00024383,4]
[365280385,1749575446623,-1611.82,0.00024383,4]
[365280386,1749575446632,-530.14,0.00024383,4]
[365280387,1749575446643,-636.29,0.00024383,4]
[365280388,1749575446652,-547.81849771,0.00024383,4]
[365280389,1749575446662,-1018.16,0.00024383,4]
[365280390,1749575446672,-502.15,0.00024383,4]
[365280391,1749575446682,-1072.99,0.00024383,4]
[365280393,1749575446691,-1214.31,0.00024383,4]
[365280395,1749575446701,-1387.6,0.00024383,4]
[365280396,1749575446710,-460.0,0.00024383,4]
[365280398,1749575446719,-842.84,0.00024383,4]
[365280400,1749575446729,-1309.27,0.00024383,4]
[365280402,1749575446739,-963.4,0.00024383,4]
[365280404,1749575446749,-460.0,0.00024383,4]
[365280406,1749575446759,-663.84,0.00024383,4]
[365280409,1749575446771,-460.0,0.00024383,4]
[365280411,1749575446781,-628.26432575,0.00024386,2]
[365280413,1749575446790,-64374.06,0.000244,7]
[365280415,1749575446800,-326.05242744,0.00024486,11]
[365280417,1749575446809,-151.0,0.000245,5]
[365280419,1749575446818,-5000.0,0.00024561,2]
[365280421,1749575446828,-700.29,0.0002458,6]
[365280423,1749575446837,-326.05242744,0.0002459,11]
[365280425,1749575446847,-155.0,0.00024648,2]
[365280427,1749575446856,-460.0,0.00024657,4]
[365280429,1749575446866,-512.15,0.00024657,4]
[365280431,1749575446875,-558.61,0.00024657,4]
[365280433,1749575446885,-460.0,0.00024657,4]
[365280435,1749575446895,-668.71,0.00024657,4]
[365280437,1749575446904,-524.59,0.00024657,4]
[365280439,1749575446913,-942.26,0.00024657,4]
[365280441,1749575446922,-1611.82,0.00024657,4]
[365280443,1749575446932,-530.14,0.00024657,4]
[365280445,1749575446942,-636.29,0.00024657,4]
[365280447,1749575446952,-1018.16,0.00024657,4]
[365280449,1749575446962,-502.15,0.00024657,4]
[365280451,1749575446972,-1072.99,0.00024657,4]
[365280453,1749575446982,-1214.31,0.00024657,4]
[365280455,1749575446993,-1387.6,0.00024657,4]
[365280457,1749575447004,-365.50919151,0.00024657,4]
[365280459,1749575447015,-842.84,0.00024657,4]
[365280461,1749575447024,-1309.27,0.00024657,4]
[365280463,1749575447034,-963.4,0.00024657,4]
[365280465,1749575447044,-254.36793446,0.00024657,4]
[365280467,1749575447053,-663.84,0.00024657,4]
[365280469,1749575447063,-460.0,0.00024657,4]
[365280471,1749575447074,-200.0,0.00024658,15]
[365280474,1749575447087,-363.0,0.00024672,2]
[365280476,1749575447096,-326.05242744,0.00024693,11]
[365280478,1749575447106,-2000.0,0.000247,2]
[365280480,1749575447116,-2000.0,0.000247,2]
[365280482,1749575447126,-375.25,0.000247,7]
[365280484,1749575447135,-34673.67,0.000247,2]
[365280486,1749575447144,-1120.0,0.0002471,2]
[365280488,1749575447156,-17378.4041599,0.00024758,2]
[365280490,1749575447165,-700.29,0.0002478,4]
[365280492,1749575447176,-326.05242744,0.00024797,11]
[365280494,1749575447185,-168.0,0.00024799,2]
[365280496,1749575447195,-2000.0,0.000248,2]
[365280498,1749575447205,-1120.0,0.00024802,2]
[365280500,1749575447214,-200.0,0.0002482,11]
[365280502,1749575447224,-215.0738,0.00024834,2]
[365280504,1749575447234,-152.145249,0.00024849,7]
[365280505,1749575447243,-500.0,0.00024852,60]
[365280507,1749575447252,-500.0,0.00024852,60]
[365280509,1749575447261,-500.0,0.00024852,60]
[365280511,1749575447270,-500.0,0.00024852,60]
[365280513,1749575447279,-500.0,0.00024852,60]
[365280515,1749575447289,-500.0,0.00024852,60]
[365280517,1749575447298,-500.0,0.00024852,60]
[365280519,1749575447308,-500.0,0.00024852,60]
[365280521,1749575447317,-500.0,0.00024852,2]
[365280523,1749575447327,-505.17259375,0.00024852,9]
[365280525,1749575447336,-500.0,0.00024852,9]
[365280527,1749575447346,-500.0,0.00024853,60]
[365280529,1749575447355,-279.92,0.00024854,60]
[365280531,1749575447364,-151.0,0.00024854,7]
[365280533,1749575447374,-162.793971,0.00024854,7]
[365280535,1749575447383,-259.081395,0.00024854,7]
[365280537,1749575447393,-151.0,0.00024854,7]
[365280539,1749575447403,-291.863371,0.00024854,7]
[365280541,1749575447413,-176.464837,0.00024857,7]
[365280543,1749575447422,-176.464837,0.00024857,7]
[365280545,1749575447432,-176.464837,0.00024857,7]
[365280547,1749575447441,-176.464837,0.00024857,7]
[365280549,1749575447452,-176.464837,0.00024857,7]
[365280551,1749575447462,-176.464837,0.00024857,7]
[365280553,1749575447472,-176.464837,0.00024857,7]
[365280555,1749575447482,-176.464837,0.00024857,7]
[365280557,1749575447491,-176.464837,0.00024857,7]
[365280559,1749575447501,-176.464837,0.00024857,7]
[365280561,1749575447511,-176.464837,0.00024857,7]
[365280563,1749575447521,-176.464837,0.00024857,7]
[365280565,1749575447531,-176.464837,0.00024857,7]
[365280567,1749575447540,-176.464837,0.00024857,7]
[365280569,1749575447550,-176.464837,0.00024857,7]
[365280571,1749575447559,-176.464837,0.00024857,7]
[365280573,1749575447570,-176.464837,0.00024857,7]
[365280575,1749575447579,-176.464837,0.00024857,7]
[365280577,1749575447589,-176.464837,0.00024857,7]
[365280579,1749575447598,-176.464837,0.00024857,7]
[365280581,1749575447608,-151.0,0.00024858,7]
[365280583,1749575447619,-151.0,0.00024858,7]
[365280585,1749575447629,-151.0,0.00024858,7]
[365280587,1749575447638,-156.453536,0.00024858,7]
[365280589,1749575447648,-168.621003,0.00024858,7]
[365280591,1749575447657,-168.621003,0.00024858,7]
[365280593,1749575447667,-168.621003,0.00024858,7]
[365280595,1749575447676,-168.621003,0.00024858,7]
[365280597,1749575447686,-168.621003,0.00024858,7]
[365280599,1749575447695,-151.0,0.00024858,2]
[365280601,1749575447704,-151.0,0.00024858,2]
[365280603,1749575447715,-168.621003,0.00024858,7]
[365280605,1749575447725,-168.621012,0.00024858,7]
[365280607,1749575447735,-151.0,0.00024858,2]
[365280609,1749575447744,-151.0,0.00024858,2]
[365280611,1749575447754,-151.0,0.00024858,2]
[365280613,1749575447763,-151.0,0.00024858,2]
[365280615,1749575447773,-151.0,0.00024858,2]
[365280617,1749575447782,-151.0,0.00024858,2]
[365280619,1749575447792,-151.0,0.00024858,2]
[365280621,1749575447802,-151.0,0.00024858,2]
[365280624,1749575447811,-151.0,0.00024858,2]
[365280626,1749575447822,-151.0,0.00024858,2]
[365280628,1749575447831,-242.27535,0.00024858,2]
[365280630,1749575447841,-151.0,0.00024858,7]
[365280632,1749575447851,-151.0,0.00024858,7]
[365280634,1749575447861,-271.2048,0.00024858,7]
[365280636,1749575447870,-151.0,0.00024858,7]
[365280638,1749575447879,-151.0,0.00024858,7]
[365280640,1749575447889,-152.965152,0.00024858,7]
[365280642,1749575447899,-151.0,0.00024858,7]
[365280644,1749575447910,-151.0,0.00024858,7]
[365280646,1749575447919,-151.0,0.00024858,7]
[365280648,1749575447929,-592.0,0.00024858,2]
[365280650,1749575447939,-71850.47548594,0.00024858,20]
[365280659,1749575448018,-57483.45825851,0.00024858,20]
[365280662,1749575448030,-1088.96349888,0.00024858,20]
[365280664,1749575448042,-9531.4838673,0.00024858,20]
[365280666,1749575448054,-666.68264225,0.00024858,20]
[365280675,1749575448131,-460.0,0.00021095,4]
[365280677,1749575448140,-675.23879087,0.00024858,20]
[365280679,1749575448157,-17267.93429876,0.00024858,20]
[365280682,1749575448170,-918.199975,0.00024858,20]
[365280689,1749575448227,-440.0,0.00021095,4]
[365281300,1749575821505,201.998121,0.00013699,2]
[365281308,1749576431102,5288.0,0.00018,2]
[365281658,1749576632415,-342.24493609,0.000189,2]
[365281660,1749576632426,-631.25327941,0.00019,2]
[365281662,1749576632435,-666.0,0.00019288,2]
[365281664,1749576632444,-2646.6090085,0.00019944,2]
[365281666,1749576632455,-167.36909087,0.00019944,2]
[365281668,1749576632466,-169.30264,0.00019988,2]
[365281670,1749576632478,-1200.0,0.00020044,2]
[365281672,1749576632488,-300.0,0.00020045,2]
[365281674,1749576632498,-300.0,0.00020045,2]
[365281676,1749576632507,-300.0,0.00020045,2]
[365281678,1749576632518,-17764.9827215,0.00020046,2]
[365281680,1749576632527,-154.1,0.00020102,7]
[365281682,1749576632537,-201.998121,0.00020187,2]
[365281684,1749576632546,-154.1,0.00020309,7]
[365281686,1749576632558,-154.1,0.00020515,7]
[365281688,1749576632567,-302.50100239,0.00020703,2]
[365281690,1749576632579,-559.05500251,0.00020703,2]
[365281692,1749576632589,-154.1,0.00020721,7]
[365281694,1749576632598,-876.58125354,0.00020899,2]
[365281696,1749576632608,-154.1,0.00020928,7]
[365281698,1749576632618,-500.0,0.00020999,2]
[365281700,1749576632627,-500.0,0.00020999,2]
[365281702,1749576632637,-500.0,0.00020999,2]
[365281704,1749576632647,-500.0,0.00020999,2]
[365281706,1749576632658,-624.85139549,0.00020999,2]
[365281708,1749576632668,-358.35450349,0.00020999,2]
[365281710,1749576632681,-500.0,0.00020999,2]
[365281713,1749576632694,-500.0,0.00020999,2]
[365281715,1749576632707,-500.0,0.00020999,2]
[365281717,1749576632719,-500.0,0.00020999,2]
[365281720,1749576632731,-183.93799025,0.00020999,2]
[365281722,1749576632743,-394.98746746,0.00020999,2]
[365281724,1749576632754,-14050.70009705,0.00021,2]
[365281730,1749576632811,-1215.95449955,0.00021,2]
[365282109,1749576638483,-37146.03437351,0.00021,2]
[365282110,1749576638503,-268.389567,0.00021,2]
[365282111,1749576638516,-200.74787022,0.00021,2]
[365282112,1749576638529,-500.0,0.00021022,2]
[365282113,1749576638540,-440.0,0.00021095,4]
[365282114,1749576638553,-440.0,0.00021095,4]
[365282115,1749576638564,-460.0,0.00021095,4]
[365282116,1749576638579,-460.0,0.00021095,4]
[365282117,1749576638592,-420.0,0.00021095,4]
[365282118,1749576638605,-380.0,0.00021095,4]
[365282119,1749576638616,-460.0,0.00021095,4]
[365282120,1749576638627,-460.0,0.00021095,4]
[365282121,1749576638637,-460.0,0.00021095,4]
[365282122,1749576638648,-430.0,0.00021095,4]
[365282123,1749576638661,-460.0,0.00021095,4]
[365282124,1749576638674,-430.0,0.00021095,4]
[365282125,1749576638685,-188.12906042,0.00021095,4]
[365282126,1749576638698,-460.0,0.00021095,4]
[365282127,1749576638712,-460.0,0.00021095,4]
[365282128,1749576638723,-430.0,0.00021095,4]
[365282129,1749576638734,-460.0,0.00021095,4]
[365282130,1749576638744,-460.0,0.00021095,4]
[365282131,1749576638755,-533.64831665,0.00021095,4]
[365282132,1749576638765,-430.0,0.00021095,4]
[365282133,1749576638776,-440.0,0.00021095,4]
[365282134,1749576638786,-460.0,0.00021095,4]
[365282135,1749576638797,-460.0,0.00021095,4]
[365282136,1749576638812,-460.0,0.00021095,4]
[365282137,1749576638824,-361.02,0.00021095,4]
[365282138,1749576638835,-460.0,0.00021095,4]
[365282139,1749576638846,-460.0,0.00021095,4]
[365282140,1749576638857,-4165.77,0.00021095,4]
[365282141,1749576638868,-460.0,0.00021095,4]
[365282142,1749576638880,-246.41081921,0.00021095,4]
[365282143,1749576638891,-460.0,0.00021095,4]
[365282144,1749576638903,-460.0,0.00021095,4]
[365282145,1749576638914,-460.0,0.00021095,4]
[365282146,1749576638925,-460.0,0.00021095,4]
[365282147,1749576638936,-460.0,0.00021095,4]
[365282148,1749576638947,-430.0,0.00021095,4]
[365282149,1749576638958,-460.0,0.00021095,4]
[365282150,1749576638969,-460.0,0.00021095,4]
[365282151,1749576638980,-460.0,0.00021095,4]
[365282152,1749576638991,-460.0,0.00021095,4]
[365282153,1749576639002,-430.0,0.00021095,4]
[365282154,1749576639012,-360.0,0.00021095,4]
[365282155,1749576639023,-485.37,0.00021095,4]
[365282156,1749576639034,-430.0,0.00021095,4]
[365282157,1749576639044,-460.0,0.00021095,4]
[365282158,1749576639055,-430.0,0.00021095,4]
[365282159,1749576639065,-460.0,0.00021095,4]
[365282160,1749576639076,-460.0,0.00021095,4]
[365282161,1749576639090,-460.0,0.00021095,4]
[365282162,1749576639102,-460.0,0.00021095,4]
[365282163,1749576639113,-612.67,0.00021095,4]
[365282164,1749576639124,-430.0,0.00021095,4]
[365282165,1749576639135,-440.0,0.00021095,4]
[365282166,1749576639147,-460.0,0.00021095,4]
[365282167,1749576639159,-460.0,0.00021095,4]
[365282168,1749576639170,-430.0,0.00021095,4]
[365282169,1749576639181,-553.74,0.00021095,4]
[365282170,1749576639192,-460.0,0.00021095,4]
[365282171,1749576639203,-813.24,0.00021095,4]
[365282172,1749576639214,-460.0,0.00021095,4]
[365282173,1749576639225,-460.0,0.00021095,4]
[365282174,1749576639236,-460.0,0.00021095,4]
[365282175,1749576639248,-380.0,0.00021095,4]
[365282176,1749576639259,-537.48,0.00021095,4]
[365282177,1749576639270,-489.35,0.00021095,4]
[365282178,1749576639282,-460.0,0.00021095,4]
[365282179,1749576639293,-430.0,0.00021095,4]
[365282180,1749576639304,-460.0,0.00021095,4]
[365282181,1749576639315,-460.0,0.00021095,4]
[365282182,1749576639326,-460.0,0.00021095,2]
[365282183,1749576639339,-460.0,0.00021095,4]
[365282184,1749576639350,-1143.94,0.00021095,4]
[365282185,1749576639361,-460.0,0.00021095,4]
[365282186,1749576639372,-460.0,0.00021095,4]
[365282187,1749576639383,-430.0,0.00021095,4]
[365282188,1749576639393,-460.0,0.00021095,4]
[365282189,1749576639404,-300.0,0.00021095,4]
[365282190,1749576639415,-460.0,0.00021095,4]
[365282191,1749576639601,-430.0,0.00021095,4]
[365282192,1749576639616,-430.0,0.00021095,4]
[365282193,1749576639626,-460.0,0.00021095,4]
[365282194,1749576639636,-430.0,0.00021095,4]
[365282195,1749576639646,-779.83,0.00021095,4]
[365282196,1749576639659,-430.0,0.00021095,4]
[365282197,1749576639669,-430.0,0.00021095,4]
[365282198,1749576639678,-460.0,0.00021095,4]
[365282199,1749576639688,-430.0,0.00021095,4]
[365282200,1749576639697,-460.0,0.00021095,4]
[365282201,1749576639707,-930.03,0.00021095,4]
[365282202,1749576639716,-430.0,0.00021095,4]
[365282203,1749576639725,-430.0,0.00021095,4]
[365282204,1749576639735,-532.68279812,0.00021095,4]
[365282205,1749576639745,-1052.79,0.00021095,4]
[365282206,1749576639755,-460.0,0.00021095,4]
[365282207,1749576639765,-820.68,0.00021095,4]
[365282208,1749576639774,-460.0,0.00021095,4]
[365282209,1749576639785,-430.0,0.00021095,4]
[365282210,1749576639794,-460.0,0.00021095,4]
[365282211,1749576639804,-460.0,0.00021095,4]
[365282212,1749576639813,-460.0,0.00021095,4]
[365282213,1749576639823,-430.0,0.00021095,4]
[365282214,1749576639832,-692.45,0.00021095,4]
[365282215,1749576639842,-430.0,0.00021095,4]
[365282216,1749576639852,-460.0,0.00021095,4]
[365282217,1749576639862,-460.0,0.00021095,4]
[365282218,1749576639872,-807.39,0.00021095,4]
[365282219,1749576639881,-430.0,0.00021095,4]
[365282220,1749576639890,-460.0,0.00021095,4]
[365282221,1749576639899,-1087.75,0.00021095,4]